bitfinex/quotes_ETHUSD_20260207
["timestamp","ask_amount","ask_price","bid_price","bid_amount"]
[1770460419978,0.31803172,2007.0,2005.8,1.67871559]
[1770460420382,1.74763972,2007.2,2005.8,1.67871559]
[1770460421089,1.74763972,2007.2,2006.0,1.67871559]
[1770460421389,1.24742216,2007.4,2006.0,1.67871559]
[1770460421702,1.74763972,2007.3,2006.0,1.67871559]
[1770460422106,0.002,2007.4,2006.0,1.67871559]
[1770460422314,0.002,2007.4,2006.1,0.29250389]
[1770460422985,0.002,2007.4,2006.2,1.24613697]
[1770460423309,1.74963972,2007.4,2006.2,1.24613697]
[1770460423510,1.74763972,2007.2,2006.2,1.24613697]
[1770460425206,1.74763972,2007.1,2006.2,1.24613697]
[1770460425410,1.74763972,2007.1,2006.3,0.65231888]
[1770460426496,1.24741131,2007.4,2006.3,0.65231888]
[1770460426497,1.74763972,2007.3,2006.3,0.65231888]
[1770460427195,1.74763972,2007.2,2006.4,1.24601275]
[1770460427805,0.002,2007.4,2006.4,1.24601275]
[1770460429113,0.002,2007.4,2006.5,1.67871559]
[1770460429296,0.002,2007.4,2006.6,0.29247283]
[1770460429914,0.002,2007.4,2006.6,1.97118842]
[1770460430215,1.74963972,2007.4,2006.6,0.29247283]
[1770460430515,1.74963972,2007.4,2006.4,1.24601275]
[1770460430713,1.80475562,2007.3,2006.4,1.24601275]
[1770460431232,1.74763972,2007.2,2006.3,1.89837226]
[1770460431390,1.74763972,2007.2,2006.3,1.2460502]
[1770460432696,0.002,2008.0,2006.3,1.2460502]
[1770460432907,0.002,2008.0,2007.1,1.67871559]
[1770460433112,2.73839968,2008.5,2007.1,1.67871559]
[1770460433435,1.74763972,2008.5,2007.2,1.24551614]
[1770460433718,1.74763972,2008.5,2007.3,2.46934522]
[1770460434022,1.74763972,2008.8,2007.4,1.67871559]
[1770460434323,2.99216584,2008.8,2007.4,1.67871559]
[1770460434824,1.74763972,2009.1,2007.5,1.67871559]
[1770460435036,1.74763972,2008.6,2007.3,0.79062963]
[1770460435234,1.80475562,2009.3,2008.0,1.24501992]
[1770460435433,1.74763972,2009.2,2008.0,1.24501992]
[1770460436845,1.24618253,2009.4,2008.0,2.92373551]
[1770460437007,1.74763972,2009.3,2008.0,1.24501992]
[1770460437205,1.74763972,2009.1,2007.9,4.98007968]
[1770460437426,2.04683132,2009.0,2008.0,0.99601594]
[1770460437702,2.04683132,2009.0,2007.8,4.98007968]
[1770460439510,1.24446214,2008.9,2007.7,1.24514393]
[1770460439710,2.99210186,2008.9,2007.7,1.24514393]
[1770460440330,1.74763972,2008.8,2007.7,1.24514393]
[1770460441635,1.74763972,2008.7,2007.4,18.86157238]
[1770460441808,2.04685628,2008.6,2007.5,2.0897594]
[1770460442007,2.04685628,2008.6,2007.4,4.98082382]
[1770460442940,2.04685628,2008.6,2007.3,2.03604497]
[1770460443107,2.04685628,2008.6,2007.3,1.24541534]
[1770460443519,2.04685628,2008.6,2007.2,4.98190848]
[1770460443520,1.80475562,2008.4,2007.2,4.98190848]
[1770460443731,1.74763972,2008.4,2007.2,4.98190848]
[1770460444640,1.80475562,2008.4,2007.2,4.98190848]
[1770460444942,1.74763972,2008.4,2007.2,4.98190848]
[1770460445238,1.74763972,2008.2,2007.3,0.79461283]
[1770460445739,1.74763972,2008.2,2007.4,1.24539204]
[1770460446120,1.63170996,2008.5,2007.4,1.24539204]
[1770460446637,0.29921656,2008.6,2007.4,1.24539204]
[1770460446638,0.29921656,2008.6,2007.5,1.65980615]
[1770460446838,1.63170996,2008.7,2007.4,1.24539204]
[1770460447041,1.91953436,2008.6,2007.5,0.70215731]
[1770460447647,2.87641994,2008.5,2007.6,1.24526798]
[1770460448254,1.63170996,2008.4,2007.6,1.24526798]
[1770460450060,0.002,2008.8,2007.7,1.7510868]
[1770460451549,0.002,2008.8,2007.6,1.24526798]
[1770460451550,1.72027855,2008.8,2007.6,1.24526798]
[1770460451739,1.71827855,2008.7,2007.7,0.69284972]
[1770460452046,1.71827855,2008.5,2007.8,1.24514393]
[1770460452841,2.9648141,2008.8,2007.8,1.24514393]
[1770460453158,1.71827855,2008.7,2007.8,1.24514393]
[1770460453334,1.71827855,2008.7,2007.9,0.69185694]
[1770460453925,2.96287296,2008.7,2008.0,1.24501992]
[1770460454339,1.71827855,2008.6,2007.9,1.93690645]
[1770460454537,1.71827855,2008.6,2007.9,1.24504951]
[1770460454756,1.71827855,2008.6,2007.8,1.24510596]
[1770460454954,1.71827855,2008.6,2007.7,0.69284972]
[1770460455148,1.71827855,2008.6,2007.6,1.24526173]
[1770460455358,1.71827855,2008.6,2007.7,1.24515549]
[1770460455544,1.71827855,2008.4,2007.7,1.24517603]
[1770460455739,1.71827855,2008.4,2007.6,1.2462369]
[1770460455938,2.96307188,2008.4,2007.6,4.9818898]
[1770460456256,2.96307188,2008.4,2007.6,1.24626798]
[1770460456452,1.71827855,2008.3,2007.6,1.24626798]
[1770460456658,2.54211155,2008.3,2007.6,1.93923097]
[1770460457957,1.24489592,2008.2,2007.6,1.93923097]
[1770460458172,7.52151023,2008.3,2007.6,1.93923097]
[1770460458173,3.78698966,2008.3,2007.6,1.24626798]
[1770460460662,1.71827855,2008.2,2007.6,0.001]
[1770460462754,1.71827855,2008.0,2007.6,0.001]
[1770460464570,0.2962873,2008.5,2007.3,1.7510868]
[1770460464767,0.3011916,2009.0,2007.6,1.24526798]
[1770460464768,1.71827855,2008.7,2007.6,1.24526798]
[1770460465475,1.71827855,2008.7,2007.6,2.99635478]
[1770460466169,1.24655666,2008.8,2007.7,1.7510868]
[1770460466170,0.002,2008.8,2007.7,1.7510868]
[1770460466742,0.002,2008.8,2007.8,1.24514393]
[1770460466942,0.002,2008.8,2007.9,1.7510868]
[1770460467163,0.002,2008.8,2008.0,0.29962307]
[1770460467370,0.002,2008.8,2007.8,1.24514393]
[1770460468360,1.72027855,2008.8,2007.8,1.24514393]
[1770460468755,1.71827855,2008.7,2007.7,4.98057575]
[1770460469445,0.002,2008.8,2007.7,6.73166255]
[1770460469757,0.002,2008.8,2007.8,1.7520868]
[1770460469952,0.002,2008.8,2007.9,0.67326625]
[1770460470164,0.002,2008.5,2007.9,0.67326625]
[1770460470855,0.002,2008.5,2008.0,1.24501992]
[1770460471253,0.002,2008.5,2007.9,1.918328]
[1770460471477,1.77739445,2008.5,2007.5,0.001]
[1770460472346,1.71827855,2008.3,2007.5,0.001]
[1770460473181,1.71827855,2008.1,2007.5,0.001]
[1770460473386,0.29631745,2008.0,2007.5,0.001]
[1770460474482,2.014596,2008.0,2007.5,0.001]
[1770460476254,1.54136183,2008.0,2007.5,0.001]
[1770460476480,1.66559246,2007.9,2007.5,0.001]
[1770460476967,0.29631745,2008.0,2007.5,0.001]
[1770460477167,1.54134399,2008.0,2007.5,0.001]
[1770460477365,1.66559246,2007.9,2007.5,0.001]
[1770460477675,0.32069365,2007.8,2007.5,0.001]
[1770460478266,1.66559246,2007.7,2006.8,1.24570232]
[1770460478682,1.56584156,2007.8,2006.8,1.24570232]
[1770460478862,1.66559246,2007.7,2006.8,1.24570232]
[1770460479877,1.66559246,2007.7,2006.9,1.24570232]
[1770460480193,1.66559246,2007.5,2006.7,1.25684626]
[1770460480393,1.66559246,2007.5,2006.7,1.24581474]
[1770460481069,1.66559246,2007.5,2006.5,0.01206562]
[1770460481273,1.66559246,2007.5,2006.7,1.2458237]
[1770460481585,1.9566785,2007.4,2006.6,1.24584148]
[1770460481760,1.9566785,2007.4,2006.7,1.24582176]
[1770460481963,1.66559246,2007.2,2006.5,0.001]
[1770460483989,1.66559246,2007.2,2007.0,0.001]
[1770460484289,3.20208895,2007.4,2007.0,0.001]
[1770460484482,0.52729024,2007.3,2007.0,0.001]
[1770460484684,2.91099146,2007.4,2007.0,0.001]
[1770460484980,1.66559246,2007.4,2007.0,0.001]
[1770460485182,1.66559246,2007.4,2006.5,0.001]
[1770460485183,1.66559246,2007.3,2006.5,0.001]
[1770460485392,1.24542312,2007.4,2006.5,0.001]
[1770460485697,2.9109073,2007.6,2006.5,1.68387808]
[1770460485920,1.66559246,2007.5,2006.5,1.68387808]
[1770460486269,1.24536014,2007.5,2006.5,0.001]
[1770460486593,1.66559246,2007.4,2006.5,0.001]
[1770460488591,1.66559246,2007.4,2006.5,1.24695066]
[1770460488797,2.9109934,2007.4,2006.6,0.62307533]
[1770460489166,1.66559246,2007.3,2006.6,0.62307533]
[1770460489703,1.66559246,2007.6,2006.6,0.62307533]
[1770460489881,0.002,2007.8,2006.7,1.68287808]
[1770460490078,1.2471597,2007.8,2006.7,1.68287808]
[1770460490398,1.24526798,2007.6,2006.9,1.24570232]
[1770460490573,1.28956842,2007.8,2006.9,1.24570232]
[1770460490775,2.53472598,2007.8,2006.9,1.24570232]
[1770460491179,1.66559246,2007.7,2006.9,1.24570232]
[1770460491900,1.66559246,2007.7,2006.6,7.28950485]
[1770460491901,1.72270836,2007.7,2006.6,1.86890533]
[1770460492100,1.66559246,2007.5,2006.7,1.24581786]
[1770460492500,1.66559246,2007.3,2006.6,0.62307533]
[1770460492673,1.66559246,2007.3,2006.6,1.86894252]
[1770460492983,1.66559246,2007.3,2006.6,0.62307533]
[1770460493300,1.66559246,2007.3,2006.6,1.2458591]
[1770460493511,1.66559246,2007.3,2006.5,1.2469023]
[1770460493873,1.66559246,2007.3,2006.6,1.24588424]
[1770460494389,1.66559246,2007.3,2006.5,0.001]
[1770460494589,1.66559246,2007.1,2006.5,0.001]
[1770460494778,1.66559246,2006.9,2006.5,0.001]
[1770460494987,1.66559246,2006.9,2006.0,2.43876049]
[1770460495709,1.66559246,2006.7,2005.4,1.24659449]
[1770460496200,1.72270836,2006.7,2005.4,1.24659449]
[1770460496610,1.66559246,2006.5,2005.2,4.98653635]
[1770460496797,1.95674056,2006.4,2005.3,0.79161729]
[1770460497001,1.95674056,2006.4,2006.2,0.001]
[1770460498073,1.95674056,2006.4,2006.0,0.001]
[1770460498673,1.66559246,2006.2,2006.0,0.001]
[1770460499295,1.66559246,2006.3,2004.8,1.68287808]
[1770460499500,1.66559246,2006.1,2005.2,1.24672748]
[1770460500191,1.95674056,2006.4,2005.3,1.24669359]
[1770460500416,2.91160839,2006.4,2005.4,1.68287808]
[1770460500611,1.66559246,2006.4,2005.4,1.68287808]
[1770460500784,3.70118462,2006.4,2005.5,2.66854533]
[1770460500979,3.70118462,2006.4,2005.5,1.24653187]
[1770460501377,1.66559246,2006.7,2005.5,2.92940995]
[1770460501611,3.20237259,2007.0,2005.6,1.68287808]
[1770460501910,1.66559246,2006.9,2005.6,1.68287808]
[1770460502116,1.66559246,2006.9,2005.5,1.24653187]
[1770460502415,1.72270836,2006.8,2005.5,1.24653187]
[1770460502620,1.66559246,2006.6,2005.6,0.62329879]
[1770460502834,1.66559246,2006.4,2005.5,1.24657002]
[1770460503123,1.66559246,2006.4,2005.6,1.24650627]
[1770460503611,1.66559246,2006.4,2005.1,1.68287808]
[1770460503821,1.66559246,2006.4,2005.5,1.24655442]
[1770460504025,1.66559246,2006.4,2005.4,4.98651132]
[1770460504222,0.78953458,2006.4,2005.5,1.74517999]
[1770460504423,1.66559246,2006.3,2005.6,1.24650679]
[1770460504988,0.78953458,2006.4,2005.3,1.68287808]
[1770460505201,2.96691959,2006.7,2005.6,1.68287808]
[1770460505202,2.91142238,2006.7,2005.6,1.68287808]
[1770460505612,1.66559246,2006.6,2005.3,1.68287808]
[1770460505831,1.66559246,2006.6,2005.2,4.98703353]
[1770460506001,1.61928402,2006.4,2005.3,0.62337919]
[1770460507004,1.61928402,2006.4,2005.4,1.24663408]
[1770460507226,1.24602055,2006.4,2005.4,2.94646665]
[1770460507429,0.29685383,2006.5,2005.5,1.69983257]
[1770460507634,2.86512686,2006.7,2005.5,1.69983257]
[1770460507836,2.86511267,2006.7,2005.5,1.69983257]
[1770460508138,1.61928402,2006.7,2005.5,1.69983257]
[1770460508298,1.24574775,2006.9,2005.5,1.69983257]
[1770460509096,1.24574775,2006.9,2005.7,1.69983257]
[1770460509297,0.81387943,2006.8,2005.8,0.29463423]
[1770460510094,1.91039488,2007.0,2005.8,2.04173779]
[1770460510514,0.29111086,2007.0,2005.8,2.04173779]
[1770460510713,1.24555994,2007.2,2005.8,2.04173779]
[1770460511101,1.24555994,2007.2,2006.0,1.74710356]
[1770460511832,2.91923827,2007.2,2006.0,1.74710356]
[1770460512124,1.67367833,2007.1,2006.0,1.74710356]
[1770460513336,1.24564025,2007.0,2006.1,1.24619909]
[1770460513500,1.53757211,2007.0,2006.2,0.7978099]
[1770460514005,0.29193186,2007.0,2006.2,0.7978099]
[1770460514535,1.96561019,2007.0,2006.1,1.24619909]
[1770460515632,1.96561019,2007.0,2006.0,1.74710356]
[1770460515807,0.29193186,2007.0,2006.0,1.74710356]
[1770460516135,2.91923008,2007.2,2006.0,1.74710356]
[1770460518132,2.91923008,2007.2,2006.1,1.24619909]
[1770460518823,1.67567833,2007.5,2006.2,1.74710356]
[1770460519001,1.67567833,2007.5,2006.4,1.74710356]
[1770460519204,2.92102147,2007.5,2006.4,1.74710356]
[1770460519424,0.79241128,2007.5,2006.4,1.74710356]
[1770460519621,1.67567833,2007.5,2006.4,1.74710356]
[1770460520215,1.67567833,2007.5,2006.5,1.24595066]
[1770460521126,1.67567833,2007.5,2006.5,2.99305422]
[1770460521514,0.002,2007.5,2006.5,2.99305422]
[1770460522308,1.67567833,2007.5,2006.5,1.24595066]
[1770460523449,1.67567833,2007.5,2006.5,2.36735459]
[1770460523740,0.002,2007.3,2006.5,2.36735459]
[1770460523942,0.002,2007.3,2006.6,1.74710356]
[1770460524345,0.002,2007.3,2006.5,2.36735459]
[1770460524912,0.002,2007.3,2006.6,1.74710356]
[1770460525117,0.002,2007.3,2006.5,2.36735459]
[1770460525118,0.002,2007.3,2006.7,2.15854938]
[1770460526242,0.002,2007.3,2006.7,0.41144582]
[1770460526436,0.002,2007.3,2006.8,1.2457644]
[1770460529547,0.002,2007.3,2006.8,2.99286796]
[1770460529715,0.002,2007.5,2006.8,2.99286796]
[1770460529921,0.002,2007.5,2006.9,0.83873714]
[1770460530651,0.002,2007.5,2006.9,2.5858407]
[1770460530847,0.002,2007.5,2007.0,1.24564025]
[1770460531220,0.002,2007.5,2007.0,2.99274381]
[1770460531426,0.002,2007.7,2007.0,2.99274381]
[1770460531649,0.002,2007.7,2007.1,0.8814042]
[1770460532953,0.002,2007.7,2007.2,1.24551614]
[1770460533158,0.002,2007.8,2007.2,1.24551614]
[1770460533159,1e-08,2008.0,2007.3,1.74710356]
[1770460533362,1.67367834,2008.0,2007.2,1.24551614]
[1770460537060,0.002,2007.5,2007.2,1.24551614]
[1770460537261,1.67367834,2008.0,2007.3,0.71089849]
[1770460537643,0.002,2007.7,2007.4,1.24539204]
[1770460537960,1.64353571,2007.7,2006.9,0.83873714]
[1770460538158,1.64353571,2007.7,2007.1,1.24557717]
[1770460538865,1.64353571,2007.7,2007.3,1.24545203]
[1770460539162,0.002,2007.7,2007.2,1.24547237]
[1770460539467,0.002,2007.7,2007.3,1.24543712]
[1770460539642,0.002,2007.7,2007.2,4.98206345]
[1770460539849,0.002,2007.7,2007.3,0.62275796]
[1770460540564,0.002,2007.7,2007.1,1.24552904]
[1770460541962,0.002,2007.7,2006.9,4.98280309]
[1770460542772,1.64353571,2007.7,2006.9,4.98280309]
[1770460543863,1.64353571,2007.7,2006.7,4.9828093]
[1770460544058,1.64153571,2007.6,2006.7,4.9828093]
[1770460544258,1.64153571,2007.6,2006.8,0.78808216]
[1770460545852,2.88681297,2007.6,2006.9,1.24570232]
[1770460546169,1.64153571,2007.4,2006.9,1.24570232]
[1770460546347,1.64153571,2007.4,2006.8,2.03379929]
[1770460547064,1.64153571,2007.4,2006.9,0.70170197]
[1770460547979,1.64153571,2007.4,2006.9,1.94740009]
[1770460548362,1.64153571,2007.6,2006.9,1.94740009]
[1770460549574,0.002,2007.7,2006.9,1.94740009]
[1770460550302,0.002,2007.7,2007.1,0.001]
[1770460551178,1.64353571,2007.7,2007.1,0.001]
[1770460551381,2.43064855,2007.7,2007.1,0.001]
[1770460551570,0.78911284,2007.7,2007.1,0.001]
[1770460551972,2.43064855,2007.7,2007.1,0.001]
[1770460553289,0.002,2007.7,2007.1,0.001]
[1770460556677,0.002,2007.7,2007.1,1.65318579]
[1770460556881,0.002,2007.7,2007.2,1.24551614]
[1770460558083,1e-08,2009.0,2008.0,1.65218579]
[1770460558280,1e-08,2009.0,2008.3,0.0571159]
[1770460558479,1e-08,2009.0,2008.1,1.65218579]
[1770460558691,1e-08,2009.0,2007.9,0.2906862]
[1770460558692,1.64153572,2009.0,2007.9,1.70930169]
[1770460558908,0.2885908,2008.9,2008.2,0.0571159]
[1770460559074,1.64153572,2009.0,2008.2,0.0571159]
[1770460559278,1.64153571,2008.9,2008.0,1.24501992]
[1770460561297,1.64153571,2008.7,2007.7,1.24520595]
[1770460563201,1.64153571,2008.5,2007.5,4.98082382]
[1770460565803,1.66203656,2008.3,2007.4,1.24533001]
[1770460566008,2.45062619,2008.3,2007.5,0.70159749]
[1770460566435,1.66203656,2008.2,2007.5,0.70159749]
[1770460566624,1.66203656,2008.2,2007.3,1.24641978]
[1770460568005,1.66203656,2008.2,2007.3,0.001]
[1770460568210,1.66203656,2008.1,2007.3,0.001]
[1770460569919,1.72660441,2007.9,2007.3,0.001]
[1770460570085,1.72660441,2007.7,2007.3,0.001]
[1770460570280,1.72660441,2007.9,2007.3,0.001]
[1770460572289,2.97174834,2007.8,2007.3,0.001]
[1770460572512,1.72660441,2007.7,2007.3,0.001]
[1770460574605,1.72660441,2008.0,2007.3,0.001]
[1770460576333,1.72660441,2008.0,2007.5,0.001]
[1770460576633,1.72660441,2007.8,2007.5,0.001]
[1770460576834,1.72660441,2007.7,2007.5,0.001]
[1770460578041,2.97168633,2007.9,2007.5,0.001]
[1770460578335,1.72660441,2007.9,2007.5,0.001]
[1770460578839,1.24500007,2008.1,2007.5,0.001]
[1770460579429,2.97160448,2008.1,2007.5,0.001]
[1770460579638,1.72660441,2008.5,2007.5,1.71466041]
[1770460579841,1.72660441,2008.5,2007.5,0.001]
[1770460579842,1.72660441,2008.4,2007.5,0.001]
[1770460580933,1.72660441,2008.2,2007.5,0.001]
[1770460582842,1.72660441,2008.0,2007.5,0.001]
[1770460583140,1.24495792,2008.1,2007.5,0.001]
[1770460583141,2.02376064,2007.9,2007.5,0.001]
[1770460584610,2.02376064,2007.9,2007.3,0.001]
[1770460584939,1.72660441,2007.7,2007.3,0.001]
[1770460586934,5.27773198,2007.9,2007.3,0.001]
[1770460586935,1.54225889,2007.9,2007.3,0.001]
[1770460588725,1.54225889,2007.9,2007.5,0.001]
[1770460590257,1.24510266,2007.9,2007.5,0.001]
[1770460591922,2.97167274,2008.0,2007.5,0.001]
[1770460592937,1.72660441,2007.9,2007.5,0.001]
[1770460594840,1.72660441,2007.7,2007.5,0.001]
[1770460596846,2.97186689,2007.7,2007.5,0.001]
[1770460597031,2.36999362,2007.6,2007.5,0.001]
[1770460597417,1.57473698,2007.5,2007.3,0.001]
[1770460600148,1.24538175,2007.5,2007.3,0.001]
[1770460600343,2.82011873,2007.5,2007.3,0.001]
[1770460600854,2.81988091,2007.8,2007.7,0.001]
[1770460602026,2.81988091,2007.8,2007.5,0.001]
[1770460602331,1.57473698,2008.1,2007.5,0.001]
[1770460603525,2.81958031,2008.3,2007.5,0.001]
[1770460603927,0.002,2008.6,2007.5,1.58450072]
[1770460604128,0.002,2008.6,2007.7,1.58350072]
[1770460604332,0.002,2008.6,2007.8,0.28287687]
[1770460604550,0.002,2008.6,2007.8,1.86637759]
[1770460606058,1.24664801,2008.6,2007.9,1.24508192]
[1770460606561,0.002,2008.6,2007.9,1.24508192]
[1770460607057,0.002,2008.7,2008.0,1.58350072]
[1770460607260,0.002,2008.7,2008.1,0.28285826]
[1770460607566,0.002,2008.7,2007.9,1.24508192]
[1770460608132,0.002,2008.7,2007.9,2.82858264]
[1770460608838,0.002,2008.7,2008.0,1.58350072]
[1770460610461,0.002,2008.7,2008.0,1.24498481]
[1770460610662,1.57673698,2008.7,2008.0,1.24498481]
[1770460611037,1.85925752,2008.7,2008.0,0.65081761]
[1770460611239,1.85925752,2008.7,2007.8,0.28287687]
[1770460611571,1.85925752,2008.7,2007.6,1.2452208]
[1770460612072,1.85925752,2008.7,2007.8,1.24514363]
[1770460612479,2.81938499,2008.6,2007.5,2.82983073]
[1770460613050,1.57473698,2008.5,2007.5,1.24633001]
[1770460613956,1.57473698,2008.5,2007.7,0.001]
[1770460614152,0.2819385,2008.4,2007.7,0.001]
[1770460614753,1.24674245,2008.5,2007.7,0.001]
[1770460614947,0.002,2008.5,2007.7,0.001]
[1770460615249,0.002,2008.5,2007.7,1.58450072]
[1770460616661,0.002,2008.5,2007.8,2.82864465]
[1770460619072,0.002,2008.5,2007.9,1.58350072]
[1770460619279,0.002,2008.5,2008.0,0.28286447]
[1770460619850,0.002,2008.5,2008.0,1.86636519]
[1770460620451,0.002,2008.7,2008.0,1.86636519]
[1770460620856,0.002,2008.8,2008.3,1.58350072]
[1770460621274,0.002,2008.8,2008.5,1.58350072]
[1770460621475,1e-08,2009.0,2008.6,1.86632799]
[1770460621861,0.002,2009.8,2008.9,1.64061662]
[1770460622178,0.002,2009.8,2009.0,1.58350072]
[1770460622878,0.002,2009.8,2008.9,11.26325535]
[1770460623085,0.002,2009.8,2009.0,1.12632553]
[1770460623273,0.002,2009.8,2009.1,1.24433826]
[1770460625464,1.57673698,2009.8,2009.1,1.24433826]
[1770460626455,0.002,2009.8,2009.1,1.24433826]
[1770460627185,0.002,2009.6,2009.1,1.24433826]
[1770460627386,0.002,2009.6,2009.2,0.89455424]
[1770460627586,0.002,2009.6,2009.3,1.2442144]
[1770460628297,0.002,2009.8,2009.3,2.84174001]
[1770460628494,0.002,2010.1,2009.3,1.2442144]
[1770460628495,1.56713309,2010.0,2009.3,1.2442144]
[1770460630377,0.002,2010.1,2009.3,1.2442144]
[1770460630572,0.002,2010.1,2009.4,1.83788816]
[1770460631393,1.65704097,2010.0,2009.4,1.83788816]
[1770460631693,1.65704097,2010.0,2009.3,1.2442144]
[1770460632793,0.002,2010.1,2009.3,1.2442144]
[1770460633379,1.65704097,2010.0,2009.2,2.13880566]
[1770460633584,1.65704097,2010.0,2008.6,17.8830756]
[1770460633791,1.65704097,2010.0,2008.9,1.24446149]
[1770460634576,1.65704097,2009.8,2008.7,1.24453716]
[1770460634994,1.65704097,2009.8,2008.8,1.24451289]
[1770460635898,1.65704097,2009.8,2008.8,1.24452054]
[1770460636193,1.65704097,2009.6,2008.8,1.24452054]
[1770460636571,2.90113153,2009.5,2008.4,4.97907438]
[1770460636894,1.65704097,2009.4,2008.4,4.97907438]
[1770460638591,2.90119489,2009.4,2008.4,4.97907438]
[1770460638968,2.90119489,2009.4,2008.6,0.001]
[1770460640507,1.65704097,2009.4,2008.6,0.001]
[1770460640681,1.65704097,2009.4,2008.6,1.24564801]
[1770460640863,1.65704097,2009.4,2008.7,0.6281356]
[1770460642685,1.65704097,2009.4,2008.8,1.24452409]
[1770460643098,1.65904097,2009.6,2008.8,1.30163999]
[1770460643399,1.65704097,2009.5,2008.7,1.87268568]
[1770460643604,1.65704097,2009.3,2008.7,1.87268568]
[1770460643803,1.65704097,2009.5,2008.7,1.87268568]
[1770460646300,1.65704097,2009.4,2008.7,1.87268568]
[1770460647601,2.90119445,2009.4,2008.7,1.87268568]
[1770460648205,1.65704097,2009.3,2008.7,0.6281356]
[1770460648406,2.44480068,2009.3,2008.7,1.87271667]
[1770460649388,1.65704097,2009.3,2008.7,1.87271667]
[1770460650910,1.65704097,2009.5,2008.7,1.87271667]
[1770460651283,1.65704097,2009.5,2008.9,0.001]
[1770460651794,1.65704097,2009.3,2008.9,0.001]
[1770460653007,1.65704097,2009.3,2008.7,0.001]
[1770460653805,1.65704097,2009.2,2008.7,0.001]
[1770460654006,1.65704097,2009.1,2008.7,0.001]
[1770460655790,0.002,2009.6,2008.8,0.0571159]
[1770460655990,0.002,2009.6,2008.7,0.001]
[1770460656184,0.002,2009.6,2008.8,0.0571159]
[1770460656791,0.002,2009.6,2008.8,1.59656813]
[1770460658614,0.002,2009.6,2008.9,1.24446214]
[1770460658823,0.002,2009.6,2009.0,0.78188788]
[1770460660604,0.002,2009.6,2009.0,2.02623952]
[1770460662603,1.5324716,2009.6,2009.0,2.02623952]
[1770460663126,1.5324716,2009.6,2009.0,1.24435164]
[1770460663325,1.5324716,2009.6,2008.9,1.24441914]
[1770460663502,1.5324716,2009.6,2008.7,1.24556997]
[1770460664020,1.5324716,2009.6,2008.8,1.24452233]
[1770460664207,1.5324716,2009.6,2009.0,0.001]
[1770460664610,0.002,2009.4,2009.0,0.001]
[1770460665501,1.5324716,2009.4,2009.0,0.001]
[1770460665703,2.30794273,2009.4,2009.0,0.001]
[1770460666212,1.5304716,2009.3,2009.0,0.001]
[1770460667311,1.5304716,2009.1,2008.8,0.001]
[1770460669319,2.77483024,2009.1,2008.8,0.001]
[1770460669526,1.80795462,2009.0,2008.8,0.001]
[1770460672008,2.77475493,2009.2,2008.8,0.001]
[1770460673424,1.24428333,2009.2,2008.8,0.001]
[1770460673617,1.5304716,2009.2,2008.8,0.001]
[1770460676448,1.5304716,2009.1,2008.8,0.001]
[1770460677342,1.5304716,2009.1,2009.0,0.001]
[1770460677517,2.77471081,2009.3,2009.0,0.001]
[1770460677719,2.38335936,2009.2,2009.0,0.001]
[1770460677946,2.38535936,2009.2,2009.0,0.001]
[1770460678644,0.85488776,2009.2,2009.0,0.001]
[1770460680140,2.09917346,2009.2,2009.0,0.001]
[1770460680519,1.5304716,2009.1,2009.0,0.001]
[1770460680720,3.63546141,2009.1,2009.0,0.001]
[1770460680919,2.77480986,2009.1,2009.0,0.001]
[1770460681845,1.5304716,2009.1,2009.0,0.001]
[1770460682046,1.24632576,2009.2,2009.0,0.001]
[1770460682354,0.002,2009.2,2009.0,0.001]
[1770460682821,0.002,2009.6,2009.0,0.001]
[1770460683018,0.002,2009.6,2009.0,0.270169]
[1770460683529,0.002,2009.6,2009.0,1.71174787]
[1770460684848,0.002,2009.6,2009.2,1.43801991]
[1770460685230,0.002,2009.6,2009.1,1.24433826]
[1770460685231,0.006,2009.6,2009.1,1.24433826]
[1770460688733,1.4580199,2009.5,2009.0,1.51453233]
[1770460688935,1.4540199,2009.4,2009.0,0.001]
[1770460689747,1.49605384,2009.2,2009.0,0.001]
[1770460689948,1.49605384,2009.2,2008.7,0.001]
[1770460690155,1.49605384,2008.9,2008.4,0.001]
[1770460690371,1.49605384,2008.7,2007.9,1.24603589]
[1770460690669,1.12768206,2008.8,2008.2,9.77076679]
[1770460690834,1.49605384,2009.1,2008.4,11.01552897]
[1770460691032,0.001,2009.0,2008.4,11.01552897]
[1770460691559,1.47914431,2008.9,2007.9,0.34840542]
[1770460691733,1.94831584,2008.8,2007.9,0.001]
[1770460691934,1.47914431,2008.6,2007.9,0.001]
[1770460692244,1.47914431,2008.4,2007.9,0.001]
[1770460692446,1.47914431,2008.4,2008.2,0.001]
[1770460692649,0.001,2008.3,2008.2,0.001]
[1770460692842,1.47914431,2008.4,2007.9,0.001]
[1770460693042,2.72392485,2008.4,2007.9,0.001]
[1770460693239,0.27239249,2008.3,2007.9,0.001]
[1770460693631,1.7515368,2008.3,2007.9,0.001]
[1770460695248,1.24489592,2008.2,2007.9,0.001]
[1770460695557,1.47914431,2008.1,2007.9,0.001]
[1770460698458,1.24497539,2008.1,2007.9,0.001]
[1770460698637,1.79839397,2008.1,2007.9,0.001]
[1770460700147,0.55341858,2008.1,2007.9,0.001]
[1770460701170,0.27239249,2008.3,2007.9,0.001]
[1770460701339,1.24470998,2008.5,2007.9,0.001]
[1770460701539,2.72385429,2008.5,2007.9,0.001]
[1770460703064,1.24483393,2008.3,2007.9,0.001]
[1770460703364,0.27239782,2008.2,2007.9,0.001]
[1770460703569,2.72391935,2008.4,2007.9,0.001]
[1770460703954,1.47914431,2008.3,2007.9,0.001]
[1770460704266,1.47914431,2008.3,2008.1,0.001]
[1770460704462,1.48114431,2008.3,2008.1,0.001]
[1770460705052,1.24683406,2008.3,2008.1,0.001]
[1770460705254,2.01751762,2008.3,2008.1,0.001]
[1770460706680,3.49666193,2008.3,2008.1,0.001]
[1770460708174,1.47914431,2008.2,2008.1,0.001]
[1770460709148,1.47914431,2008.2,2007.9,0.001]
[1770460709983,2.72410223,2008.1,2007.9,0.001]
[1770460710172,0.77038224,2008.0,2007.9,0.001]
[1770460710547,2.24952655,2008.0,2007.9,0.001]
[1770460711765,2.72410223,2008.1,2007.9,0.001]
[1770460712150,1.47914431,2008.0,2007.9,0.001]
[1770460713066,1.47914431,2008.0,2007.8,0.001]